[Event "*** Titled Tuesday Blitz"]
[Site "Chess.com"]
[Date "2021.04.27"]
[Round "5"]
[White "Aslanov_Umid"]
[Black "IMRosen"]
[Result "0-1"]
[WhiteElo "2446"]
[BlackElo "2667"]
[TimeControl "180+1"]
[EndTime "10:56:30 PDT"]
[Termination "IMRosen won by resignation"]

1. e4 {[%clk 0:03:00.9]} 1... e5 {[%clk 0:02:57.4]} 2. Nf3 {[%clk 0:03:01.3]}
2... Nf6 {[%clk 0:02:56.7]} 3. d4 {[%clk 0:03:00.4]} 3... exd4 {[%clk
0:02:44.2]} 4. e5 {[%clk 0:03:01.3]} 4... Ne4 {[%clk 0:02:44.3]} 5. Qxd4 {[%clk
0:03:01.7]} 5... d5 {[%clk 0:02:45]} 6. exd6 {[%clk 0:03:01.4]} 6... Nxd6 {[%clk
0:02:45.6]} 7. Nc3 {[%clk 0:03:02]} 7... Nc6 {[%clk 0:02:45.9]} 8. Qf4 {[%clk
0:03:01.9]} 8... g6 {[%clk 0:02:39.1]} 9. Be2 {[%clk 0:02:45.1]} 9... Bg7 {[%clk
0:02:38.5]} 10. O-O {[%clk 0:02:44.5]} 10... O-O {[%clk 0:02:38.8]} 11. Be3
{[%clk 0:02:41]} 11... Bf5 {[%clk 0:02:18.1]} 12. Rac1 {[%clk 0:02:28.7]} 12...
Qd7 {[%clk 0:02:07.9]} 13. Rfd1 {[%clk 0:02:18.8]} 13... Rad8 {[%clk 0:02:07.6]}
14. Nd5 {[%clk 0:02:03.3]} 14... Bxb2 {[%clk 0:01:50.8]} 15. Bd4 {[%clk
0:01:55.3]} 15... Nxd4 {[%clk 0:01:37.2]} 16. Nxd4 {[%clk 0:01:48.2]} 16... f6
{[%clk 0:01:28.4]} 17. Nxf5 {[%clk 0:01:27.6]} 17... gxf5 {[%clk 0:00:45.2]} 18.
Rb1 {[%clk 0:01:24.2]} 18... Be5 {[%clk 0:00:44.7]} 19. Qh4 {[%clk 0:01:18.8]}
19... c6 {[%clk 0:00:40.2]} 20. Ne3 {[%clk 0:01:18]} 20... Qg7 {[%clk
0:00:34.2]} 21. Rb3 {[%clk 0:00:53.8]} 21... f4 {[%clk 0:00:31.5]} 22. Ng4
{[%clk 0:00:52.1]} 22... Nf5 {[%clk 0:00:28.9]} 23. Qh3 {[%clk 0:00:45.4]} 23...
Nd4 {[%clk 0:00:27.3]} 24. Bc4+ {[%clk 0:00:40.4]} 24... Kh8 {[%clk 0:00:25.7]}
25. Rbd3 {[%clk 0:00:35]} 25... c5 {[%clk 0:00:13.9]} 26. Kh1 {[%clk 0:00:33.3]}
26... b5 {[%clk 0:00:13.9]} 27. Bxb5 {[%clk 0:00:32.4]} 27... Rb8 {[%clk
0:00:07.4]} 28. Bc4 {[%clk 0:00:31.5]} 28... Nxc2 {[%clk 0:00:06]} 29. Rd7
{[%clk 0:00:28.6]} 29... Qxd7 {[%clk 0:00:03.1]} 30. Rg1 {[%clk 0:00:18.3]}
30... Nd4 {[%clk 0:00:03.3]} 31. Nxe5 {[%clk 0:00:17.3]} 31... Qxh3 {[%clk
0:00:02.8]} 32. gxh3 {[%clk 0:00:17.6]} 32... fxe5 {[%clk 0:00:03.5]} 33. Bd3
{[%clk 0:00:18.3]} 33... Nf5 {[%clk 0:00:03.7]} 34. Be4 {[%clk 0:00:17.9]} 34...
Nd6 {[%clk 0:00:03.7]} 35. Bc2 {[%clk 0:00:17.3]} 35... c4 {[%clk 0:00:04.2]}
36. Rd1 {[%clk 0:00:17.4]} 36... Rbd8 {[%clk 0:00:04.2]} 37. Ba4 {[%clk
0:00:17.4]} 37... e4 {[%clk 0:00:04.4]} 38. Rd5 {[%clk 0:00:17.1]} 38... e3
{[%clk 0:00:04.9]} 39. fxe3 {[%clk 0:00:16.6]} 39... fxe3 {[%clk 0:00:05.8]} 40.
Re5 {[%clk 0:00:16.7]} 40... Rde8 {[%clk 0:00:05.6]} 41. Bxe8 {[%clk 0:00:16.4]}
41... Rxe8 {[%clk 0:00:06.5]} 42. Rd5 {[%clk 0:00:17]} 42... e2 {[%clk
0:00:06.8]} 43. Rxd6 {[%clk 0:00:17.9]} 43... e1=Q+ {[%clk 0:00:06.5]} 44. Kg2
{[%clk 0:00:18.8]} 0-1

[Event "*** Titled Tuesday Blitz"]
[Site "Chess.com"]
[Date "2021.04.27"]
[Round "5"]
[White "Shuvalov"]
[Black "chessmachine14"]
[Result "1-0"]
[WhiteElo "2448"]
[BlackElo "2262"]
[TimeControl "180+1"]
[EndTime "10:56:30 PDT"]
[Termination "Shuvalov won on time"]

1. b4 {[%clk 0:02:48.8]} 1... Nf6 {[%clk 0:02:37.4]} 2. Bb2 {[%clk 0:02:48]}
2... e6 {[%clk 0:02:29.3]} 3. a3 {[%clk 0:02:45.5]} 3... a5 {[%clk 0:02:26.6]}
4. b5 {[%clk 0:02:44.7]} 4... Be7 {[%clk 0:02:24.3]} 5. e3 {[%clk 0:02:44.3]}
5... O-O {[%clk 0:02:23.9]} 6. g4 {[%clk 0:02:39.5]} 6... d5 {[%clk 0:02:21.2]}
7. g5 {[%clk 0:02:38.5]} 7... Ne4 {[%clk 0:02:19.3]} 8. f4 {[%clk 0:02:38.1]}
8... e5 {[%clk 0:01:51.1]} 9. Bxe5 {[%clk 0:02:33.1]} 9... f6 {[%clk 0:01:50]}
10. d3 {[%clk 0:02:07.5]} 10... fxe5 {[%clk 0:01:16]} 11. dxe4 {[%clk
0:02:06.5]} 11... exf4 {[%clk 0:01:15.8]} 12. exf4 {[%clk 0:01:47.2]} 12... Rxf4
{[%clk 0:01:09.4]} 13. Qxd5+ {[%clk 0:01:42.8]} 13... Qxd5 {[%clk 0:01:09]} 14.
exd5 {[%clk 0:01:43.7]} 14... Bxg5 {[%clk 0:00:50]} 15. Bd3 {[%clk 0:01:42.2]}
15... Bg4 {[%clk 0:00:37.5]} 16. Ne2 {[%clk 0:01:39.2]} 16... Bh4+ {[%clk
0:00:28.3]} 17. Kd2 {[%clk 0:01:34.3]} 17... Rf2 {[%clk 0:00:28.4]} 18. Nc3
{[%clk 0:01:32.3]} 18... Nd7 {[%clk 0:00:27.9]} 19. Raf1 {[%clk 0:01:24.4]}
19... Raf8 {[%clk 0:00:27.1]} 20. Rxf2 {[%clk 0:01:21]} 20... Rxf2 {[%clk
0:00:27.1]} 21. h3 {[%clk 0:01:16]} 21... Bh5 {[%clk 0:00:16.4]} 22. Ne4 {[%clk
0:01:05.5]} 22... Rg2 {[%clk 0:00:16.1]} 23. Ke3 {[%clk 0:01:03.7]} 23... Ne5
{[%clk 0:00:16.1]} 24. Nf4 {[%clk 0:01:00.8]} 24... Bg5 {[%clk 0:00:15.9]} 25.
Nxg5 {[%clk 0:01:00.3]} 25... Rxg5 {[%clk 0:00:15.8]} 26. Be4 {[%clk 0:00:57.9]}
26... Bf7 {[%clk 0:00:14.3]} 27. Kd4 {[%clk 0:00:55.8]} 27... Nd7 {[%clk
0:00:11]} 28. d6 {[%clk 0:00:45.3]} 28... cxd6 {[%clk 0:00:10.7]} 29. Bxb7
{[%clk 0:00:45.6]} 29... Nc5 {[%clk 0:00:11]} 30. Bd5 {[%clk 0:00:42.5]} 30...
Rg3 {[%clk 0:00:10.8]} 31. Rb1 {[%clk 0:00:40.5]} 31... Bxd5 {[%clk 0:00:07.6]}
32. Nxd5 {[%clk 0:00:39.7]} 32... Ne6+ {[%clk 0:00:07]} 33. Ke4 {[%clk
0:00:37.8]} 33... Nc5+ {[%clk 0:00:07.2]} 34. Kf4 {[%clk 0:00:37.9]} 34... Rxa3
{[%clk 0:00:06.5]} 35. b6 {[%clk 0:00:37.6]} 35... Rxh3 {[%clk 0:00:05.1]} 36.
b7 {[%clk 0:00:37]} 36... Nxb7 {[%clk 0:00:05]} 37. Rxb7 {[%clk 0:00:37.1]}
37... a4 {[%clk 0:00:05.4]} 38. Ra7 {[%clk 0:00:36.6]} 38... a3 {[%clk
0:00:05.5]} 39. Kf5 {[%clk 0:00:32.2]} 39... Rh5+ {[%clk 0:00:04.2]} 40. Ke6
{[%clk 0:00:32.4]} 40... Rh6+ {[%clk 0:00:03.5]} 41. Ke7 {[%clk 0:00:30.3]}
41... g5 {[%clk 0:00:02.7]} 42. Ne3 {[%clk 0:00:26]} 42... Rh3 {[%clk
0:00:02.4]} 43. Nf5 {[%clk 0:00:25.2]} 43... h5 {[%clk 0:00:02.2]} 44. Kf6
{[%clk 0:00:25.2]} 44... Rf3 {[%clk 0:00:01.1]} 45. Kg6 {[%clk 0:00:25.2]} 1-0

[Event "*** Titled Tuesday Blitz"]
[Site "Chess.com"]
[Date "2021.04.27"]
[Round "5"]
[White "ariosp"]
[Black "BanjoKazooieN64"]
[Result "0-1"]
[WhiteElo "2201"]
[BlackElo "2514"]
[TimeControl "180+1"]
[EndTime "10:56:30 PDT"]
[Termination "BanjoKazooieN64 won on time"]

1. e4 {[%clk 0:03:00.9]} 1... e5 {[%clk 0:02:51.4]} 2. Nf3 {[%clk 0:02:59.5]}
2... Nf6 {[%clk 0:02:51.5]} 3. Bc4 {[%clk 0:02:57.6]} 3... Bc5 {[%clk
0:02:50.1]} 4. Nxe5 {[%clk 0:02:48.5]} 4... O-O {[%clk 0:02:50]} 5. d4 {[%clk
0:02:47.5]} 5... Bb6 {[%clk 0:02:45.4]} 6. Nc3 {[%clk 0:02:18.1]} 6... d5 {[%clk
0:02:46.3]} 7. exd5 {[%clk 0:02:13.5]} 7... Bf5 {[%clk 0:02:37.4]} 8. O-O {[%clk
0:02:11.7]} 8... Na6 {[%clk 0:02:36.3]} 9. Be3 {[%clk 0:02:11]} 9... Nb4 {[%clk
0:02:36]} 10. Rc1 {[%clk 0:02:10]} 10... Nbxd5 {[%clk 0:02:35.9]} 11. Nxd5
{[%clk 0:02:09.7]} 11... Nxd5 {[%clk 0:02:36.8]} 12. Bxd5 {[%clk 0:02:06.9]}
12... Qxd5 {[%clk 0:02:36.2]} 13. c4 {[%clk 0:02:07]} 13... Qe4 {[%clk
0:02:34.7]} 14. c5 {[%clk 0:02:02.4]} 14... Ba5 {[%clk 0:02:34.6]} 15. Qa4
{[%clk 0:01:59.2]} 15... f6 {[%clk 0:01:58.5]} 16. Nc4 {[%clk 0:01:55.7]} 16...
b6 {[%clk 0:01:47.4]} 17. b4 {[%clk 0:01:55.1]} 17... a6 {[%clk 0:01:41.9]} 18.
Nd2 {[%clk 0:01:48]} 18... Qg4 {[%clk 0:01:35.2]} 19. bxa5 {[%clk 0:01:45.9]}
19... b5 {[%clk 0:01:35.7]} 20. Qb3+ {[%clk 0:01:45.7]} 20... Kh8 {[%clk
0:01:34.5]} 21. Rfe1 {[%clk 0:01:34.4]} 21... c6 {[%clk 0:01:34.2]} 22. d5
{[%clk 0:01:19]} 22... cxd5 {[%clk 0:01:31.6]} 23. Qxd5 {[%clk 0:01:18.8]} 23...
Be6 {[%clk 0:01:31.7]} 24. Qf3 {[%clk 0:01:16.7]} 24... Qg6 {[%clk 0:01:31]} 25.
a3 {[%clk 0:01:13.7]} 25... Rad8 {[%clk 0:01:30.2]} 26. c6 {[%clk 0:01:10.6]}
26... Bd5 {[%clk 0:01:29.2]} 27. Qg3 {[%clk 0:01:10.8]} 27... Qf7 {[%clk
0:01:28.8]} 28. c7 {[%clk 0:01:05.3]} 28... Rc8 {[%clk 0:01:29]} 29. Bb6 {[%clk
0:00:59.6]} 29... Rfe8 {[%clk 0:01:24.5]} 30. Rxe8+ {[%clk 0:00:56.4]} 30...
Qxe8 {[%clk 0:01:25.4]} 31. Qe3 {[%clk 0:00:54.6]} 31... Qg6 {[%clk 0:01:24]}
32. f3 {[%clk 0:00:54.5]} 32... h5 {[%clk 0:01:22.7]} 33. Ne4 {[%clk 0:00:49.4]}
33... f5 {[%clk 0:01:16.5]} 34. Qg5 {[%clk 0:00:41.7]} 34... Qe6 {[%clk
0:00:42.9]} 35. Qxh5+ {[%clk 0:00:34.2]} 35... Kg8 {[%clk 0:00:43.2]} 36. Nf2
{[%clk 0:00:17.2]} 36... Bc4 {[%clk 0:00:40]} 37. Qg5 {[%clk 0:00:15.1]} 37...
Re8 {[%clk 0:00:37]} 38. Qd8 {[%clk 0:00:10.8]} 38... Kf7 {[%clk 0:00:37.4]} 39.
Qd2 {[%clk 0:00:10.2]} 39... g5 {[%clk 0:00:30.8]} 40. h3 {[%clk 0:00:02.4]}
40... Rc8 {[%clk 0:00:20.2]} 41. a4 {[%clk 0:00:02.5]} 41... bxa4 {[%clk
0:00:19.5]} 42. Qxg5 {[%clk 0:00:01.7]} 42... a3 {[%clk 0:00:19.2]} 43. Qh5+
{[%clk 0:00:01.1]} 43... Ke7 {[%clk 0:00:19]} 0-1

[Event "*** Titled Tuesday Blitz"]
[Site "Chess.com"]
[Date "2021.04.27"]
[Round "5"]
[White "KonstantinB_1983"]
[Black "ChadBiryani"]
[Result "1-0"]
[WhiteElo "2509"]
[BlackElo "2306"]
[TimeControl "180+1"]
[EndTime "10:56:31 PDT"]
[Termination "KonstantinB_1983 won on time"]

1. d4 {[%clk 0:03:00.9]} 1... f5 {[%clk 0:02:58.7]} 2. c4 {[%clk 0:03:01.1]}
2... e6 {[%clk 0:02:58.4]} 3. g3 {[%clk 0:02:59.3]} 3... Nf6 {[%clk 0:02:58.6]}
4. Bg2 {[%clk 0:02:59.7]} 4... Be7 {[%clk 0:02:59.2]} 5. Nf3 {[%clk 0:02:59.5]}
5... O-O {[%clk 0:02:59.6]} 6. O-O {[%clk 0:02:59.7]} 6... d6 {[%clk 0:02:59.7]}
7. b4 {[%clk 0:02:58.3]} 7... a5 {[%clk 0:02:57.3]} 8. b5 {[%clk 0:02:56.5]}
8... Ne4 {[%clk 0:02:56.9]} 9. Bb2 {[%clk 0:02:55.4]} 9... Nd7 {[%clk
0:02:56.5]} 10. a4 {[%clk 0:02:54.2]} 10... Ndf6 {[%clk 0:02:54.9]} 11. Qc2
{[%clk 0:02:49.6]} 11... Qe8 {[%clk 0:02:53.7]} 12. Nbd2 {[%clk 0:02:43.1]}
12... g5 {[%clk 0:02:49.9]} 13. Nxe4 {[%clk 0:02:40.5]} 13... Nxe4 {[%clk
0:02:48.8]} 14. Nd2 {[%clk 0:02:40.5]} 14... Nxd2 {[%clk 0:02:41.3]} 15. Qxd2
{[%clk 0:02:39.9]} 15... Qh5 {[%clk 0:02:40.9]} 16. f4 {[%clk 0:02:36.8]} 16...
gxf4 {[%clk 0:02:33.1]} 17. gxf4 {[%clk 0:02:32.3]} 17... Bf6 {[%clk 0:01:59.4]}
18. Rf3 {[%clk 0:02:21.8]} 18... Kf7 {[%clk 0:01:37.7]} 19. Rh3 {[%clk
0:02:19.7]} 19... Qg6 {[%clk 0:01:37.8]} 20. Rg3 {[%clk 0:02:14.8]} 20... Qh6
{[%clk 0:01:36.1]} 21. e4 {[%clk 0:02:08.4]} 21... Bh4 {[%clk 0:01:04.6]} 22.
Rh3 {[%clk 0:02:05.4]} 22... Rg8 {[%clk 0:01:04.9]} 23. Kh1 {[%clk 0:02:04.5]}
23... Rg4 {[%clk 0:01:00.4]} 24. Rf1 {[%clk 0:01:58.6]} 24... Kf8 {[%clk
0:00:51.5]} 25. e5 {[%clk 0:01:31.7]} 25... Ke7 {[%clk 0:00:31.9]} 26. d5 {[%clk
0:01:21.5]} 26... Bd7 {[%clk 0:00:28]} 27. dxe6 {[%clk 0:01:19]} 27... Bxe6
{[%clk 0:00:28.4]} 28. Bxb7 {[%clk 0:01:18.1]} 28... Rag8 {[%clk 0:00:27.8]} 29.
exd6+ {[%clk 0:01:13.1]} 29... cxd6 {[%clk 0:00:27.4]} 30. Bd5 {[%clk
0:01:07.6]} 30... Qg6 {[%clk 0:00:26.8]} 31. Bd4 {[%clk 0:00:56.6]} 31... Bxd5+
{[%clk 0:00:22.4]} 32. cxd5 {[%clk 0:00:55.6]} 32... Bf6 {[%clk 0:00:12.8]} 33.
Qe3+ {[%clk 0:00:46.4]} 33... Kf8 {[%clk 0:00:06.1]} 34. Bxf6 {[%clk 0:00:38.7]}
34... Qxf6 {[%clk 0:00:05.5]} 35. Rxh7 {[%clk 0:00:37.7]} 35... R8g7 {[%clk
0:00:03.2]} 36. Rh8+ {[%clk 0:00:35]} 36... Rg8 {[%clk 0:00:02.5]} 37. Rxg8+
{[%clk 0:00:34.2]} 37... Rxg8 {[%clk 0:00:03.1]} 38. Re1 {[%clk 0:00:29.8]}
38... Qf7 {[%clk 0:00:03.5]} 39. Qd4 {[%clk 0:00:24.3]} 39... Qg6 {[%clk
0:00:02.2]} 40. Qf2 {[%clk 0:00:20.6]} 40... Qf7 {[%clk 0:00:01.8]} 41. Qf3
{[%clk 0:00:20.2]} 41... Qf6 {[%clk 0:00:01.9]} 42. h3 {[%clk 0:00:18.4]} 42...
Qb2 {[%clk 0:00:01.9]} 43. Rg1 {[%clk 0:00:17.5]} 43... Rh8 {[%clk 0:00:01.2]}
44. Qg3 {[%clk 0:00:16]} 1-0

[Event "*** Titled Tuesday Blitz"]
[Site "Chess.com"]
[Date "2021.04.27"]
[Round "5"]
[White "Grandelicious"]
[Black "jefferyx"]
[Result "0-1"]
[WhiteElo "2843"]
[BlackElo "3001"]
[TimeControl "180+1"]
[EndTime "10:56:34 PDT"]
[Termination "jefferyx won on time"]

1. d4 {[%clk 0:03:00.9]} 1... d5 {[%clk 0:02:59]} 2. Nf3 {[%clk 0:03:00.5]} 2...
Nf6 {[%clk 0:02:58.6]} 3. c3 {[%clk 0:03:01]} 3... e6 {[%clk 0:02:52.7]} 4. Bg5
{[%clk 0:03:00.4]} 4... Nbd7 {[%clk 0:02:50.3]} 5. Nbd2 {[%clk 0:02:59.8]} 5...
h6 {[%clk 0:02:50.3]} 6. Bh4 {[%clk 0:02:59.1]} 6... Be7 {[%clk 0:02:50.7]} 7.
e3 {[%clk 0:02:57.7]} 7... c5 {[%clk 0:02:50.9]} 8. Bd3 {[%clk 0:02:57.6]} 8...
c4 {[%clk 0:02:51.2]} 9. Bc2 {[%clk 0:02:56.5]} 9... b5 {[%clk 0:02:51.5]} 10.
a3 {[%clk 0:02:45.2]} 10... Bb7 {[%clk 0:02:49.5]} 11. O-O {[%clk 0:02:42.5]}
11... a5 {[%clk 0:02:38.8]} 12. Qe2 {[%clk 0:02:20.2]} 12... O-O {[%clk
0:02:31.1]} 13. Bg3 {[%clk 0:01:14.6]} 13... b4 {[%clk 0:02:19.2]} 14. axb4
{[%clk 0:01:15.5]} 14... axb4 {[%clk 0:02:18]} 15. e4 {[%clk 0:01:14]} 15... Nh5
{[%clk 0:02:14.5]} 16. exd5 {[%clk 0:00:57.1]} 16... Nxg3 {[%clk 0:02:00.7]} 17.
hxg3 {[%clk 0:00:55]} 17... exd5 {[%clk 0:02:00.4]} 18. Rxa8 {[%clk 0:00:51.7]}
18... Bxa8 {[%clk 0:02:01.3]} 19. Ra1 {[%clk 0:00:33.9]} 19... Re8 {[%clk
0:02:00.6]} 20. Qd1 {[%clk 0:00:17]} 20... Bb7 {[%clk 0:01:54.9]} 21. Ba4 {[%clk
0:00:16.9]} 21... Bd6 {[%clk 0:01:45.8]} 22. Nf1 {[%clk 0:00:15.5]} 22... Re6
{[%clk 0:01:39.9]} 23. Bxd7 {[%clk 0:00:12.9]} 23... Qxd7 {[%clk 0:01:39.4]} 24.
Qd2 {[%clk 0:00:13]} 24... Qe8 {[%clk 0:01:19.7]} 25. Re1 {[%clk 0:00:11.5]}
25... Bc8 {[%clk 0:01:11.3]} 26. Rxe6 {[%clk 0:00:09.5]} 26... Bxe6 {[%clk
0:01:12.2]} 27. Ne3 {[%clk 0:00:09.6]} 27... Qa4 {[%clk 0:01:10.2]} 28. Qc1
{[%clk 0:00:06.9]} 28... Qa2 {[%clk 0:01:06.8]} 29. Nd2 {[%clk 0:00:04.1]} 29...
g6 {[%clk 0:01:02.6]} 30. Nc2 {[%clk 0:00:03.4]} 30... bxc3 {[%clk 0:00:56.7]}
31. bxc3 {[%clk 0:00:04.3]} 31... h5 {[%clk 0:00:57.1]} 32. Kf1 {[%clk
0:00:04.3]} 32... Bc7 {[%clk 0:00:52]} 33. Ne3 {[%clk 0:00:04.4]} 33... Ba5
{[%clk 0:00:51.4]} 34. Kg1 {[%clk 0:00:03.5]} 34... Kg7 {[%clk 0:00:48.4]} 35.
Nd1 {[%clk 0:00:03.9]} 35... Bc7 {[%clk 0:00:45.2]} 36. Ne3 {[%clk 0:00:04.1]}
36... Bd8 {[%clk 0:00:41.8]} 37. Nd1 {[%clk 0:00:04.6]} 37... h4 {[%clk
0:00:41.3]} 38. gxh4 {[%clk 0:00:04.7]} 38... Bxh4 {[%clk 0:00:42.2]} 39. Nf3
{[%clk 0:00:05.4]} 39... Be7 {[%clk 0:00:35.9]} 40. Ne3 {[%clk 0:00:05.9]} 40...
Ba3 {[%clk 0:00:31.7]} 41. Qe1 {[%clk 0:00:06.3]} 41... Bd6 {[%clk 0:00:25.8]}
42. Ng5 {[%clk 0:00:05.2]} 42... Bd7 {[%clk 0:00:19]} 43. Nxd5 {[%clk
0:00:04.3]} 43... Qa5 {[%clk 0:00:18.9]} 44. Qe4 {[%clk 0:00:02.8]} 44... Qa1+
{[%clk 0:00:17.6]} 0-1

[Event "*** Titled Tuesday Blitz"]
[Site "Chess.com"]
[Date "2021.04.27"]
[Round "5"]
[White "debashisdebs"]
[Black "Airquake"]
[Result "1-0"]
[WhiteElo "2923"]
[BlackElo "2640"]
[TimeControl "180+1"]
[EndTime "10:56:34 PDT"]
[Termination "debashisdebs won by resignation"]

1. e4 {[%clk 0:03:00.9]} 1... c5 {[%clk 0:02:47.7]} 2. Nf3 {[%clk 0:03:00.2]}
2... d6 {[%clk 0:02:38.4]} 3. d4 {[%clk 0:02:58.7]} 3... cxd4 {[%clk 0:02:38.2]}
4. Nxd4 {[%clk 0:02:59.6]} 4... Nf6 {[%clk 0:02:37.5]} 5. Nc3 {[%clk 0:02:58.1]}
5... a6 {[%clk 0:02:34.4]} 6. f3 {[%clk 0:02:55.6]} 6... e5 {[%clk 0:02:33.7]}
7. Nb3 {[%clk 0:02:54.2]} 7... Be7 {[%clk 0:02:33.7]} 8. Be3 {[%clk 0:02:52.5]}
8... O-O {[%clk 0:02:30.4]} 9. Qd2 {[%clk 0:02:51.1]} 9... Nc6 {[%clk
0:02:28.6]} 10. g4 {[%clk 0:02:47.2]} 10... Be6 {[%clk 0:02:25.3]} 11. g5 {[%clk
0:02:43.2]} 11... Nh5 {[%clk 0:02:24.7]} 12. O-O-O {[%clk 0:02:41.6]} 12... a5
{[%clk 0:02:12.8]} 13. a4 {[%clk 0:02:28.1]} 13... Nb4 {[%clk 0:02:12.4]} 14.
Kb1 {[%clk 0:02:22.9]} 14... Rc8 {[%clk 0:02:11.8]} 15. Bb5 {[%clk 0:02:20.8]}
15... Qc7 {[%clk 0:01:59.6]} 16. Qf2 {[%clk 0:02:10.4]} 16... d5 {[%clk
0:01:30.6]} 17. Bb6 {[%clk 0:01:44.8]} 17... Qd6 {[%clk 0:01:30.2]} 18. Nxd5
{[%clk 0:01:17.6]} 18... Bxd5 {[%clk 0:01:21.8]} 19. c3 {[%clk 0:01:10.5]} 19...
Qg6 {[%clk 0:01:05.4]} 20. Nxa5 {[%clk 0:01:01.8]} 20... Bxe4+ {[%clk
0:00:41.6]} 21. fxe4 {[%clk 0:01:01.7]} 21... Qxe4+ {[%clk 0:00:42.5]} 22. Ka1
{[%clk 0:01:02]} 22... Nc6 {[%clk 0:00:32.9]} 23. Nb3 {[%clk 0:00:51.4]} 23...
Ra8 {[%clk 0:00:31]} 24. Nc5 {[%clk 0:00:46.4]} 24... Bxc5 {[%clk 0:00:28.9]}
25. Bxc5 {[%clk 0:00:45.3]} 25... Rfd8 {[%clk 0:00:22]} 26. Rxd8+ {[%clk
0:00:40.4]} 26... Rxd8 {[%clk 0:00:22.9]} 27. Re1 {[%clk 0:00:40.8]} 27... Qf4
{[%clk 0:00:21.1]} 28. Qxf4 {[%clk 0:00:39.4]} 28... exf4 {[%clk 0:00:19]} 29.
Bxc6 {[%clk 0:00:38.4]} 29... bxc6 {[%clk 0:00:19.9]} 30. a5 {[%clk 0:00:39.3]}
30... f6 {[%clk 0:00:18.1]} 31. a6 {[%clk 0:00:32.5]} 31... fxg5 {[%clk
0:00:18.1]} 32. a7 {[%clk 0:00:33]} 32... Nf6 {[%clk 0:00:18.2]} 33. Re7 {[%clk
0:00:26.5]} 33... Ra8 {[%clk 0:00:11.5]} 34. Rb7 {[%clk 0:00:25.9]} 34... Rxa7+
{[%clk 0:00:11.8]} 35. Rxa7 {[%clk 0:00:25.3]} 35... h5 {[%clk 0:00:11.5]} 36.
Bd4 {[%clk 0:00:23.5]} 36... f3 {[%clk 0:00:09.9]} 37. Kb1 {[%clk 0:00:21.6]}
37... c5 {[%clk 0:00:03.5]} 38. Bxc5 {[%clk 0:00:14.7]} 38... g4 {[%clk
0:00:03.5]} 39. b4 {[%clk 0:00:12.6]} 39... Ne4 {[%clk 0:00:03]} 40. Bd4 {[%clk
0:00:10.6]} 40... h4 {[%clk 0:00:03.2]} 41. b5 {[%clk 0:00:09.2]} 1-0

[Event "*** Titled Tuesday Blitz"]
[Site "Chess.com"]
[Date "2021.04.27"]
[Round "5"]
[White "Andrii_Prydun"]
[Black "AlexSuv"]
[Result "0-1"]
[WhiteElo "2333"]
[BlackElo "2555"]
[TimeControl "180+1"]
[EndTime "10:56:35 PDT"]
[Termination "AlexSuv won by resignation"]

1. d4 {[%clk 0:02:30.3]} 1... Nf6 {[%clk 0:02:53.5]} 2. Nc3 {[%clk 0:02:30.7]}
2... d5 {[%clk 0:02:53.1]} 3. Bf4 {[%clk 0:02:31.1]} 3... a6 {[%clk 0:02:49]} 4.
e3 {[%clk 0:02:27.3]} 4... e6 {[%clk 0:02:49.1]} 5. Bd3 {[%clk 0:02:24.9]} 5...
c5 {[%clk 0:02:49.1]} 6. dxc5 {[%clk 0:02:20.5]} 6... Bxc5 {[%clk 0:02:48.1]} 7.
Nf3 {[%clk 0:02:21.4]} 7... Nc6 {[%clk 0:02:45.4]} 8. O-O {[%clk 0:02:20.7]}
8... h6 {[%clk 0:02:45.5]} 9. e4 {[%clk 0:02:19.6]} 9... b5 {[%clk 0:02:30.4]}
10. exd5 {[%clk 0:02:17.1]} 10... Nxd5 {[%clk 0:02:04.5]} 11. Be4 {[%clk
0:02:17.1]} 11... Nce7 {[%clk 0:01:52.1]} 12. Bxd5 {[%clk 0:02:15.2]} 12... exd5
{[%clk 0:01:50.8]} 13. Ne2 {[%clk 0:02:14.6]} 13... O-O {[%clk 0:01:46]} 14. h3
{[%clk 0:02:09.3]} 14... Bf5 {[%clk 0:01:42.6]} 15. Ned4 {[%clk 0:02:06.9]}
15... Be4 {[%clk 0:01:39.4]} 16. c3 {[%clk 0:01:59.6]} 16... Ng6 {[%clk
0:01:39.2]} 17. Be3 {[%clk 0:01:57]} 17... Qf6 {[%clk 0:01:30.3]} 18. Nd2 {[%clk
0:01:54.8]} 18... Rfe8 {[%clk 0:01:12.7]} 19. Re1 {[%clk 0:01:42.7]} 19... Rad8
{[%clk 0:01:09.6]} 20. a4 {[%clk 0:01:40.6]} 20... Nh4 {[%clk 0:00:42.2]} 21. f3
{[%clk 0:01:35.9]} 21... Qg6 {[%clk 0:00:20.5]} 22. Re2 {[%clk 0:01:28.1]} 22...
Bxd4 {[%clk 0:00:18.4]} 23. Bxd4 {[%clk 0:01:28.3]} 23... Bxf3 {[%clk
0:00:14.6]} 24. Nxf3 {[%clk 0:00:25]} 24... Nxf3+ {[%clk 0:00:11]} 25. Kh1
{[%clk 0:00:24.6]} 25... Nh4 {[%clk 0:00:10.5]} 26. Rf2 {[%clk 0:00:21.6]} 26...
Qg3 {[%clk 0:00:07.7]} 27. Qf1 {[%clk 0:00:18.8]} 27... f6 {[%clk 0:00:07]} 28.
axb5 {[%clk 0:00:18]} 28... axb5 {[%clk 0:00:07.5]} 29. Qxb5 {[%clk 0:00:18.2]}
29... Qg5 {[%clk 0:00:05.4]} 30. Qf1 {[%clk 0:00:17.2]} 30... Re4 {[%clk
0:00:03.8]} 31. Ra7 {[%clk 0:00:16.4]} 31... Rde8 {[%clk 0:00:03.9]} 32. Ra1
{[%clk 0:00:11.3]} 32... Ng6 {[%clk 0:00:03.2]} 33. b4 {[%clk 0:00:09.7]} 33...
Nf4 {[%clk 0:00:02.7]} 34. b5 {[%clk 0:00:09.4]} 34... Ne2 {[%clk 0:00:03.1]}
35. b6 {[%clk 0:00:06.9]} 35... Ng3+ {[%clk 0:00:03]} 36. Kg1 {[%clk 0:00:05.9]}
36... Nxf1 {[%clk 0:00:03.9]} 37. Raxf1 {[%clk 0:00:05.1]} 37... Re2 {[%clk
0:00:04.4]} 38. b7 {[%clk 0:00:04.6]} 38... Rxf2 {[%clk 0:00:04.9]} 39. Rxf2
{[%clk 0:00:04]} 39... Qg3 {[%clk 0:00:05.2]} 40. Rf1 {[%clk 0:00:02.2]} 40...
Rb8 {[%clk 0:00:04]} 0-1